fUST/lending_fUST_20240619
["ID","MTS","AMOUNT","RATE_DAILY","PERIOD"]
[329850583,1718751052294,-500.0,0.00019437,2]
[329850584,1718751052306,-151.0,0.00019437,2]
[329850585,1718751052315,-260.34,0.00019437,2]
[329850586,1718751052325,-1806.1,0.00019452,2]
[329850587,1718751052334,-151.0,0.0001971,2]
[329850588,1718751052344,-858.89,0.0001971,2]
[329850589,1718751052354,-500.0,0.0001971,2]
[329850590,1718751052364,-236.0,0.0001971,2]
[329850591,1718751052374,-534.52,0.0001971,2]
[329850592,1718751052383,-500.0,0.0001971,2]
[329850593,1718751052393,-6329.33,0.0001971,2]
[329850594,1718751052403,-775.29,0.0001971,2]
[329850595,1718751052418,-585.05,0.0001971,2]
[329850596,1718751052428,-805.94,0.0001971,2]
[329850597,1718751052437,-872.09,0.0001971,2]
[329850598,1718751052446,-576.88,0.0001971,2]
[329850599,1718751052457,-500.0,0.0001971,2]
[329850600,1718751052466,-4006.08,0.0001971,2]
[329850601,1718751052475,-151.0,0.00019711,2]
[329850602,1718751052485,-497.6,0.00019711,2]
[329850603,1718751052497,-595.2,0.00019711,2]
[329850604,1718751052507,-151.0,0.00019712,2]
[329850605,1718751052604,-151.0,0.00019712,2]
[329850606,1718751052614,-151.0,0.00019712,2]
[329850607,1718751052624,-1806.1,0.00019726,2]
[329850608,1718751052633,-500.0,0.00019728,2]
[329850609,1718751052642,-500.0,0.00019729,2]
[329850610,1718751052652,-1750.0,0.00019729,2]
[329850611,1718751052662,-5834.68073492,0.000199,2]
[329850612,1718751052671,-858.89,0.00019984,2]
[329850613,1718751052680,-500.0,0.00019984,2]
[329850614,1718751052690,-534.52,0.00019984,2]
[329850615,1718751052699,-151.0,0.00019984,2]
[329850616,1718751052709,-500.0,0.00019984,2]
[329850617,1718751052718,-6329.33,0.00019984,2]
[329850618,1718751052727,-775.29,0.00019984,2]
[329850619,1718751052737,-151.0,0.00019984,2]
[329850620,1718751052746,-585.05,0.00019984,2]
[329850621,1718751052755,-151.0,0.00019984,2]
[329850622,1718751052765,-805.94,0.00019984,2]
[329850623,1718751052775,-872.09,0.00019984,2]
[329850624,1718751052784,-217.6,0.00019984,2]
[329850625,1718751052794,-4006.08,0.00019984,2]
[329850626,1718751052803,-644.87,0.0001999,2]
[329850627,1718751052814,-250.38512602,0.00019998,2]
[329850628,1718751052823,-500.0,0.00019998,2]
[329850629,1718751052833,-159.02203171,0.00019999,2]
[329850630,1718751052843,-151.0,0.00019999,2]
[329850631,1718751052852,-151.0,0.00019999,2]
[329850632,1718751052862,-151.0,0.00019999,2]
[329850633,1718751052871,-151.0,0.00019999,2]
[329850634,1718751052880,-4526.28172181,0.0002,2]
[329850635,1718751052890,-40892.25337607,0.0002,2]
[329850636,1718751052899,-1806.1,0.0002,2]
[329850637,1718751052908,-858.89,0.00020258,2]
[329850638,1718751052918,-500.0,0.00020258,2]
[329850639,1718751052927,-534.52,0.00020258,2]
[329850640,1718751052936,-151.0,0.00020258,2]
[329850641,1718751052946,-500.0,0.00020258,2]
[329850642,1718751052955,-6329.33,0.00020258,2]
[329850643,1718751052964,-775.29,0.00020258,2]
[329850644,1718751052974,-151.0,0.00020258,2]
[329850645,1718751052983,-585.05,0.00020258,2]
[329850646,1718751052993,-190.905682,0.00020258,2]
[329850647,1718751053003,-805.94,0.00020258,2]
[329850648,1718751053012,-872.09,0.00020258,2]
[329850649,1718751053022,-4006.08,0.00020258,2]
[329850650,1718751053031,-151.0,0.0002026,2]
[329850651,1718751053041,-1806.1,0.00020273,2]
[329850652,1718751053050,-151.0,0.00020532,2]
[329850653,1718751053062,-151.0,0.00020532,2]
[329850654,1718751053071,-858.89,0.00020532,2]
[329850655,1718751053080,-500.0,0.00020532,2]
[329850656,1718751053090,-534.52,0.00020532,2]
[329850657,1718751053100,-500.0,0.00020532,2]
[329850658,1718751053109,-6329.33,0.00020532,2]
[329850659,1718751053119,-775.29,0.00020532,2]
[329850660,1718751053128,-585.05,0.00020532,2]
[329850661,1718751053137,-805.94,0.00020532,2]
[329850662,1718751053147,-872.09,0.00020532,2]
[329850663,1718751053156,-4006.08,0.00020532,2]
[329850664,1718751053166,-691.30254999,0.00020533,2]
[329850665,1718751053175,-1806.1,0.00020547,2]
[329850666,1718751053184,-858.89,0.00020806,2]
[329850667,1718751053193,-472.71,0.00020806,2]
[329850668,1718751053203,-534.52,0.00020806,2]
[329850669,1718751053212,-425.96086816,0.00020806,2]
[329850670,1718751053221,-6329.33,0.00020806,2]
[329850671,1718751053231,-775.29,0.00020806,2]
[329850672,1718751053240,-585.05,0.00020806,2]
[329850673,1718751053249,-805.94,0.00020806,2]
[329850674,1718751053259,-872.09,0.00020806,2]
[329850675,1718751053268,-4006.08,0.00020806,2]
[329850676,1718751053278,-1806.1,0.00020821,2]
[329850677,1718751053287,-289.036165,0.00021046,2]
[329850678,1718751053296,-250.210293,0.00021046,2]
[329850679,1718751053308,-750.630878,0.00021046,2]
[329850680,1718751053317,-867.108497,0.00021046,2]
[329850681,1718751053326,-346.843399,0.00021046,2]
[329850682,1718751053336,-173.421701,0.00021046,2]
[329850683,1718751053346,-858.89,0.0002108,2]
[329850684,1718751053356,-534.52,0.0002108,2]
[329850685,1718751053366,-6329.33,0.0002108,2]
[329850686,1718751053375,-775.29,0.0002108,2]
[329850687,1718751053385,-585.05,0.0002108,2]
[329850688,1718751053394,-805.94,0.0002108,2]
[329850689,1718751053404,-872.09,0.0002108,2]
[329850690,1718751053417,-4006.08,0.0002108,2]
[329850691,1718751053426,-457.87017339,0.00021082,2]
[329850692,1718751053436,-151.0,0.00021082,2]
[329850693,1718751053447,-1806.1,0.00021095,2]
[329850694,1718751053456,-750.0,0.00021096,2]
[329850695,1718751053465,-289.036165,0.00021309,2]
[329850696,1718751053474,-125.28568073,0.00021309,2]
[329850699,1718751312571,200.35,0.00010959,2]
[329850700,1718751324027,310.07,0.00010959,2]
[329850701,1718751334655,258.39,0.00010959,2]
[329850702,1718751345196,215.32,0.00010959,2]
[329850703,1718751355732,179.44,0.00010959,2]
[329850704,1718751366280,897.21,0.00010959,2]
[329850706,1718751587332,145.05576626,0.00027397,120]
[329850707,1718751628462,200.0,0.00027367,120]
[329850708,1718751662183,200.0,0.00026932,120]
[329850709,1718751708021,4454.944,0.00025,60]
[329850710,1718751793403,10000.0,0.000141,2]
[329850711,1718751884276,-475.5561035,0.0001525,2]
[329850712,1718751884299,-224.834341,0.00015668,2]
[329850713,1718751884320,-398.50990505,0.00015794,2]
[329850714,1718751884344,-12901.09965045,0.00015795,2]
[329850715,1718751953169,-888.92998785,0.00015795,2]
[329850716,1718751953190,-286.87043309,0.00015795,2]
[329850717,1718751953212,-190.41727371,0.00016338,2]
[329850718,1718751953235,-271.08552517,0.00016435,2]
[329850719,1718751976652,644.39805989,9.999e-05,2]
[329850720,1718752029218,-386.93741001,0.00016435,2]
[329850721,1718752030091,-698.59682538,0.00016435,2]
[329850722,1718752030112,-300.0,0.00016435,2]
[329850723,1718752030132,-190.36577265,0.00016436,2]
[329850724,1718752030152,-285.55746001,0.00016436,2]
[329850725,1718752030172,-1500.63244989,0.00016436,2]
[329850726,1718752030192,-211.75037245,0.00016436,2]
[329850727,1718752030212,-515.35107108,0.00016436,2]
[329850728,1718752030231,-359.29129592,0.00016436,2]
[329850729,1718752030251,-803.55790574,0.00016436,2]
[329850730,1718752030272,-155.22776446,0.00016436,2]
[329850731,1718752030292,-208.29169593,0.00016436,2]
[329850732,1718752030312,-1578.54141241,0.00016437,2]
[329850733,1718752030333,-500.0,0.00016438,2]
[329850734,1718752030352,-500.0,0.00016438,2]
[329850735,1718752030372,-525.58167942,0.00016438,2]
[329850736,1718752030398,-500.0,0.00016438,2]
[329850737,1718752030420,-500.0,0.00016438,2]
[329850738,1718752030442,-500.0,0.00016438,2]
[329850739,1718752030463,-300.29774209,0.00016438,2]
[329850740,1718752041102,-200.8382153,0.00015928,2]
[329850741,1718752041126,-199.70225791,0.00016438,2]
[329850742,1718752041146,-500.0,0.00016438,2]
[329850743,1718752041168,-496.15807277,0.00016438,2]
[329850744,1718752045139,-3.84192723,0.00016438,2]
[329850745,1718752045159,-500.0,0.00016438,2]
[329850746,1718752045179,-430.06514252,0.00016438,2]
[329850747,1718752051171,-69.93485748,0.00016438,2]
[329850748,1718752051193,-178.34975271,0.00016438,2]
[329850749,1718752155360,-222.189693,0.00015918,2]
[329850750,1718752155390,-215.80487489,0.00016438,2]
[329850751,1718752155424,-105.8453724,0.00016438,2]
[329850752,1718752155454,-317.50458507,0.00016438,2]
[329850765,1718752233420,-182.49541493,0.00016438,2]
[329850767,1718752233430,-500.0,0.00016438,2]
[329850769,1718752233440,-500.0,0.00016438,2]
[329850771,1718752233451,-628.45571282,0.00016438,2]
[329850773,1718752233461,-500.0,0.00016438,2]
[329850775,1718752233471,-500.0,0.00016712,2]
[329850778,1718752233481,-189.01246125,0.00016712,2]
[329850780,1718752233494,-310.98753875,0.00016712,2]
[329850781,1718752233506,-500.0,0.00016712,2]
[329850782,1718752233517,-205.20361679,0.00016869,2]
[329850783,1718752233529,-182.36812456,0.00016966,2]
[329850790,1718752239378,-274.71315359,0.00016966,2]
[329850792,1718752239389,-500.0,0.00016967,2]
[329850793,1718752239401,-500.0,0.00016967,2]
[329850794,1718752239411,-500.0,0.00016967,2]
[329850795,1718752239420,-500.0,0.00016967,2]
[329850796,1718752239430,-510.48259035,0.00016967,2]
[329850797,1718752239440,-500.0,0.00016967,2]
[329850798,1718752239449,-634.25630372,0.00016967,2]
[329850799,1718752239459,-500.0,0.00016967,2]
[329850800,1718752239469,-638.9216037,0.00016967,2]
[329850801,1718752239478,-259.97692014,0.00016967,2]
[329850802,1718752239488,-500.0,0.00016967,2]
[329850803,1718752239499,-500.0,0.00016967,2]
[329850804,1718752239508,-500.0,0.00016967,2]
[329850805,1718752239518,-500.0,0.00016967,2]
[329850806,1718752239530,-500.0,0.00016967,2]
[329850807,1718752239539,-500.0,0.00016967,2]
[329850808,1718752239549,-2823.48,0.00016967,2]
[329850809,1718752239559,-500.0,0.00016967,2]
[329850810,1718752239569,-500.0,0.00016967,2]
[329850811,1718752239578,-500.0,0.00016967,2]
[329850812,1718752239588,-500.0,0.00016967,2]
[329850813,1718752239597,-500.0,0.00016967,2]
[329850814,1718752239607,-500.0,0.00016967,2]
[329850815,1718752239617,-500.0,0.00016967,2]
[329850816,1718752239627,-500.0,0.00016967,2]
[329850817,1718752239636,-500.0,0.00016967,2]
[329850818,1718752239645,-500.0,0.00016967,2]
[329850819,1718752239656,-251.91,0.00016967,2]
[329850820,1718752239666,-500.0,0.00016967,2]
[329850821,1718752239675,-391.49373107,0.00016967,2]
[329850822,1718752239685,-500.0,0.00016967,2]
[329850823,1718752239695,-500.0,0.00016967,2]
[329850824,1718752239706,-612.8838084,0.00016967,2]
[329850825,1718752239716,-500.0,0.00016967,2]
[329850826,1718752239726,-500.0,0.00016967,2]
[329850827,1718752239735,-500.0,0.00016967,2]
[329850828,1718752239744,-506.08390573,0.00016967,2]
[329850829,1718752239754,-500.0,0.00016967,2]
[329850830,1718752239764,-505.57757035,0.00016967,2]
[329850831,1718752239774,-500.0,0.00016967,2]
[329850832,1718752239784,-500.0,0.00016967,2]
[329850833,1718752239794,-500.0,0.00016967,2]
[329850834,1718752239804,-500.0,0.00016967,2]
[329850835,1718752239819,-500.0,0.00016967,2]
[329850836,1718752239829,-500.0,0.00016967,2]
[329850837,1718752239839,-500.0,0.00016967,2]
[329850838,1718752239849,-500.0,0.00016967,2]
[329850839,1718752239859,-500.0,0.00016967,2]
[329850840,1718752239869,-500.0,0.00016967,2]
[329850841,1718752239878,-500.0,0.00016967,2]
[329850842,1718752239888,-500.0,0.00016967,2]
[329850843,1718752239902,-500.0,0.00016967,2]
[329850844,1718752239912,-500.0,0.00016967,2]
[329850845,1718752239922,-262.21290687,0.00016967,2]
[329850846,1718752239931,-274.78572379,0.00016967,2]
[329850847,1718752239941,-500.0,0.00016967,2]
[329850848,1718752239951,-500.0,0.00016967,2]
[329850849,1718752239960,-500.0,0.00016967,2]
[329850850,1718752239969,-500.0,0.00016967,2]
[329850851,1718752239979,-500.0,0.00016967,2]
[329850852,1718752239989,-500.0,0.00016967,2]
[329850853,1718752239998,-500.0,0.00016967,2]
[329850854,1718752240009,-766.86,0.00016967,2]
[329850855,1718752240019,-500.0,0.00016967,2]
[329850856,1718752240028,-500.0,0.00016967,2]
[329850857,1718752240037,-500.0,0.00016967,2]
[329850858,1718752240047,-500.0,0.00016967,2]
[329850859,1718752240056,-10202.35863397,0.00016968,2]
[329850860,1718752240066,-500.0,0.00016969,2]
[329850861,1718752240075,-500.0,0.00016969,2]
[329850862,1718752240085,-236.5197406,0.00016969,2]
[329850863,1718752240094,-515.73513593,0.00016969,2]
[329850864,1718752240103,-500.0,0.00016969,2]
[329850865,1718752240113,-579.328431,0.00016969,2]
[329850866,1718752240123,-599.95494438,0.00016969,2]
[329850867,1718752240132,-500.0,0.00016969,2]
[329850868,1718752240142,-500.0,0.00016969,2]
[329850869,1718752240152,-500.0,0.00016969,2]
[329850870,1718752240161,-500.0,0.00016969,2]
[329850871,1718752240170,-500.0,0.00016969,2]
[329850872,1718752240180,-346.46505964,0.00016969,2]
[329850873,1718752240190,-500.0,0.00016969,2]
[329850874,1718752240200,-500.0,0.00016969,2]
[329850875,1718752240210,-430.87503417,0.00016969,2]
[329850876,1718752240219,-500.0,0.00016969,2]
[329850877,1718752240229,-500.0,0.00016969,2]
[329850878,1718752240239,-500.0,0.00016969,2]
[329850879,1718752240249,-518.18852241,0.00016969,2]
[329850880,1718752240259,-500.0,0.00016969,2]
[329850881,1718752240269,-505.79444727,0.00016969,2]
[329850882,1718752240279,-501.42818865,0.00016969,2]
[329850883,1718752240288,-500.0,0.00016969,2]
[329850884,1718752240297,-500.0,0.00016969,2]
[329850885,1718752240307,-208.50340544,0.00016969,2]
[329850886,1718752240316,-329.91393294,0.00016969,2]
[329850887,1718752240326,-500.0,0.00016969,2]
[329850888,1718752240335,-500.0,0.00016969,2]
[329850889,1718752240344,-500.0,0.00016969,2]
[329850890,1718752240354,-500.0,0.00016969,2]
[329850891,1718752240365,-500.0,0.00016969,2]
[329850892,1718752240374,-500.0,0.00016969,2]
[329850893,1718752240384,-500.0,0.00016969,2]
[329850894,1718752240393,-500.0,0.00016969,2]
[329850895,1718752240406,-500.0,0.00016969,2]
[329850896,1718752240416,-500.0,0.00016969,2]
[329850897,1718752240426,-500.0,0.00016969,2]
[329850898,1718752240436,-500.0,0.00016969,2]
[329850899,1718752240446,-500.0,0.00016969,2]
[329850900,1718752240455,-250.0,0.00016969,2]
[329850901,1718752240465,-500.0,0.00016969,2]
[329850902,1718752240475,-500.0,0.00016969,2]
[329850903,1718752240484,-500.0,0.00016969,2]
[329850904,1718752240494,-500.0,0.00016969,2]
[329850905,1718752240503,-500.0,0.00016969,2]
[329850906,1718752240513,-500.0,0.00016969,2]
[329850907,1718752240522,-500.0,0.00016969,2]
[329850908,1718752240532,-500.0,0.00016969,2]
[329850909,1718752240541,-500.0,0.0001697,2]
[329850910,1718752240551,-500.0,0.0001697,2]
[329850911,1718752240561,-500.0,0.0001697,2]
[329850912,1718752240570,-500.0,0.0001697,2]
[329850913,1718752240580,-500.0,0.0001697,2]
[329850914,1718752240590,-500.0,0.0001697,2]
[329850915,1718752240600,-500.0,0.0001697,2]
[329850916,1718752240610,-519.69390465,0.0001697,2]
[329850917,1718752240620,-500.0,0.0001697,2]
[329850918,1718752240629,-500.0,0.0001697,2]
[329850919,1718752240639,-500.0,0.00016985,2]
[329850920,1718752240648,-500.0,0.00016985,2]
[329850921,1718752240661,-500.0,0.00017241,2]
[329850922,1718752240671,-500.0,0.00017241,2]
[329850923,1718752240680,-500.0,0.00017241,2]
[329850924,1718752240690,-500.0,0.00017241,2]
[329850925,1718752240699,-353.79562145,0.00017241,2]
[329850926,1718752240709,-500.0,0.00017241,2]
[329850927,1718752240717,-500.0,0.00017241,2]
[329850928,1718752240727,-500.0,0.00017241,2]
[329850929,1718752240737,-2823.48,0.00017241,2]
[329850930,1718752240747,-500.0,0.00017241,2]
[329850931,1718752240757,-500.0,0.00017241,2]
[329850932,1718752240766,-500.0,0.00017241,2]
[329850933,1718752240776,-500.0,0.00017241,2]
[329850934,1718752240786,-500.0,0.00017241,2]
[329850935,1718752240796,-624.52,0.00017241,2]
[329850936,1718752240805,-500.0,0.00017241,2]
[329850937,1718752240819,-500.0,0.00017241,2]
[329850938,1718752240829,-627.9,0.00017241,2]
[329850939,1718752240839,-500.0,0.00017241,2]
[329850940,1718752240849,-500.0,0.00017241,2]
[329850941,1718752240859,-500.0,0.00017241,2]
[329850942,1718752240869,-500.0,0.00017241,2]
[329850943,1718752240879,-500.0,0.00017241,2]
[329850944,1718752240892,-158.02,0.00017241,2]
[329850945,1718752240906,-500.0,0.00017241,2]
[329850946,1718752240916,-500.0,0.00017241,2]
[329850947,1718752240926,-500.0,0.00017241,2]
[329850948,1718752240936,-766.86,0.00017241,2]
[329850949,1718752240947,-289.39340745,0.00017241,2]
[329850950,1718752240957,-500.0,0.00017243,2]
[329850951,1718752240967,-500.0,0.00017243,2]
[329850952,1718752240977,-500.0,0.00017243,2]
[329850953,1718752240987,-515.86,0.00017243,2]
[329850954,1718752240996,-201.40386975,0.00017243,2]
[329850955,1718752241006,-500.0,0.00017243,2]
[329850956,1718752241016,-500.0,0.00017243,2]
[329850957,1718752241026,-500.0,0.00017243,2]
[329850958,1718752241036,-500.0,0.00017243,2]
[329850959,1718752241046,-500.0,0.00017243,2]
[329850960,1718752241056,-162.70632604,0.00017243,2]
[329850961,1718752241066,-500.0,0.00017243,2]
[329850962,1718752241076,-500.0,0.00017243,2]
[329850963,1718752241086,-500.0,0.00017243,2]
[329850964,1718752241095,-500.0,0.00017243,2]
[329850965,1718752241104,-500.0,0.00017244,2]
[329850966,1718752241114,-500.0,0.00017245,2]
[329850967,1718752241124,-500.0,0.00017245,2]
[329850968,1718752241134,-2823.48,0.00017515,2]
[329850969,1718752241143,-500.0,0.00017515,2]
[329850970,1718752241156,-197.54,0.00017515,2]
[329850971,1718752241165,-500.0,0.00017515,2]
[329850972,1718752241174,-500.0,0.00017515,2]
[329850973,1718752241184,-601.2,0.00017515,2]
[329850974,1718752241194,-500.0,0.00017515,2]
[329850975,1718752241203,-500.0,0.00017515,2]
[329850977,1718752241213,-766.86,0.00017515,2]
[329850979,1718752241222,-500.0,0.00017516,2]
[329850980,1718752241231,-500.0,0.00017517,2]
[329850981,1718752241240,-500.0,0.00017517,2]
[329850982,1718752241249,-607.05,0.00017517,2]
[329850983,1718752241259,-500.0,0.00017517,2]
[329850984,1718752241375,-500.0,0.00017518,2]
[329850985,1718752241385,-500.0,0.00017519,2]
[329850986,1718752241396,-1948.25584375,0.00017789,2]
[329850987,1718752241852,-875.22415625,0.00017789,2]
[329850988,1718752241862,-500.0,0.00017789,2]
[329850989,1718752241872,-500.0,0.00017789,2]
[329850990,1718752241881,-500.0,0.00017789,2]
[329850991,1718752241891,-500.0,0.00017789,2]
[329850992,1718752241906,-299.52,0.00017789,2]
[329850993,1718752241915,-766.86,0.00017789,2]
[329850994,1718752241925,-500.0,0.00017791,2]
[329850995,1718752241934,-500.0,0.00017791,2]
[329850996,1718752241943,-500.0,0.00017807,2]
[329850997,1718752241952,-2823.48,0.00018063,2]
[329850998,1718752241961,-500.0,0.00018063,2]
[329850999,1718752241970,-500.0,0.00018063,2]
[329851000,1718752241979,-500.0,0.00018063,2]
[329851001,1718752241989,-500.0,0.00018063,2]
[329851002,1718752241998,-766.86,0.00018063,2]
[329851003,1718752242007,-500.0,0.00018065,2]
[329851004,1718752242016,-500.0,0.00018065,2]
[329851005,1718752242025,-1740.88948935,0.00018337,2]
[329851030,1718752244929,-181.92257998,0.00018337,2]
[329851031,1718752244942,-900.66793067,0.00018337,2]
[329851032,1718752244951,-500.0,0.00018337,2]
[329851033,1718752244960,-500.0,0.00018337,2]
[329851034,1718752244969,-500.0,0.00018337,2]
[329851035,1718752244978,-500.0,0.00018337,2]
[329851036,1718752244988,-766.86,0.00018337,2]
[329851037,1718752244998,-500.0,0.00018339,2]
[329851038,1718752245007,-500.0,0.00018339,2]
[329851039,1718752245018,-2823.48,0.00018611,2]
[329851040,1718752245027,-500.0,0.00018611,2]
[329851041,1718752245036,-500.0,0.00018611,2]
[329851042,1718752245046,-500.0,0.00018611,2]
[329851043,1718752245055,-500.0,0.00018611,2]
[329851044,1718752245065,-766.86,0.00018611,2]
[329851045,1718752245074,-500.0,0.00018613,2]
[329851046,1718752245084,-500.0,0.00018613,2]
[329851047,1718752245093,-2823.48,0.00018885,2]
[329851048,1718752245103,-500.0,0.00018885,2]
[329851049,1718752245112,-500.0,0.00018885,2]
[329851050,1718752245122,-500.0,0.00018885,2]
[329851051,1718752245131,-500.0,0.00018885,2]
[329851052,1718752245140,-766.86,0.00018885,2]
[329851053,1718752245152,-500.0,0.00018887,2]
[329851054,1718752245161,-500.0,0.00018887,2]
[329851055,1718752245172,-1726.66,0.00018887,2]
[329851056,1718752245181,-500.0,0.00018887,2]
[329851057,1718752245190,-303.531163,0.00019096,2]
[329851058,1718752245200,-2823.48,0.00019159,2]
[329851059,1718752245209,-500.0,0.00019159,2]
[329851060,1718752245219,-500.0,0.00019159,2]
[329851061,1718752245228,-500.0,0.00019159,2]
[329851062,1718752245237,-500.0,0.00019159,2]
[329851063,1718752245246,-766.86,0.00019159,2]
[329851064,1718752245256,-500.0,0.00019161,2]
[329851065,1718752245265,-500.0,0.00019161,2]
[329851066,1718752245274,-1726.66,0.00019161,2]
[329851067,1718752245283,-165.527653,0.00019178,2]
[329851068,1718752245292,-2823.48,0.00019433,2]
[329851069,1718752245301,-500.0,0.00019433,2]
[329851070,1718752245311,-500.0,0.00019433,2]
[329851071,1718752245320,-500.0,0.00019433,2]
[329851072,1718752245330,-500.0,0.00019433,2]
[329851073,1718752245339,-766.86,0.00019433,2]
[329851074,1718752245348,-500.0,0.00019435,2]
[329851075,1718752245358,-500.0,0.00019435,2]
[329851076,1718752245368,-1726.66,0.00019435,2]
[329851077,1718752245377,-2823.48,0.00019707,2]
[329851078,1718752245386,-500.0,0.00019707,2]
[329851079,1718752245396,-500.0,0.00019707,2]
[329851080,1718752245408,-500.0,0.00019707,2]
[329851081,1718752245418,-500.0,0.00019707,2]
[329851082,1718752245427,-766.86,0.00019707,2]
[329851083,1718752245436,-470.50172318,0.00019709,2]
[329851117,1718752247640,-500.0,0.00016967,2]
[329851118,1718752247650,-500.0,0.00017241,2]
[329851119,1718752247664,-500.0,0.00017515,2]
[329851120,1718752247674,-500.0,0.00019709,2]
[329851121,1718752247683,-1726.66,0.00019709,2]
[329851122,1718752247693,-1718.7851696,0.00019981,2]
[329851124,1718753127371,2434.97383676,9.999e-05,4]
[329851125,1718753168489,1909.30895967,9.999e-05,2]
[329851126,1718753232222,-665.97858484,0.00015992,2]
[329851127,1718753233086,-346.91868066,0.00015992,2]
[329851128,1718753233108,-251.53242385,0.00016044,2]
[329851129,1718753240082,-48.46757615,0.00016044,2]
[329851130,1718753240105,-6907.24884816,0.00016045,2]
[329851131,1718753244213,-2434.83837554,0.00016045,2]
[329851132,1718753244234,-500.0,0.00016438,2]
[329851133,1718753244259,-500.0,0.00016438,2]
[329851134,1718753244280,-500.0,0.00016438,2]
[329851135,1718753244300,-382.99,0.00016712,2]
[329851136,1718753244320,-500.0,0.00016967,2]
[329851137,1718753244342,-500.0,0.00016967,2]
[329851138,1718753244363,-200.0,0.00016967,2]
[329851139,1718753244384,-500.0,0.00016967,2]
[329851140,1718753244404,-358.39101344,0.00016967,2]
[329851141,1718753244423,-268.16710052,0.00016967,2]
[329851142,1718753244444,-500.0,0.00016967,2]
[329851143,1718753244465,-500.0,0.00016967,2]
[329851144,1718753244485,-500.0,0.00016967,2]
[329851145,1718753244507,-500.0,0.00016967,2]
[329851146,1718753244527,-500.0,0.00016967,2]
[329851147,1718753244547,-500.0,0.00016967,2]
[329851148,1718753244567,-500.0,0.00016967,2]
[329851149,1718753244588,-500.0,0.00016967,2]
[329851150,1718753244610,-500.0,0.00016967,2]
[329851151,1718753244631,-507.27,0.00016967,2]
[329851152,1718753244652,-500.0,0.00016967,2]
[329851153,1718753244673,-489.47319941,0.00016967,2]
[329851154,1718753248108,-10.52680059,0.00016967,2]
[329851155,1718753248127,-377.52520107,0.00016967,2]
[329851209,1718753432572,-300.0,0.00016477,2]
[329851211,1718753432584,-4855.8,0.00016478,2]
[329851213,1718753432599,-553.4887,0.00016478,2]
[329851214,1718753432619,-3479.9,0.00016478,2]
[329851251,1718753438654,-1171.1414793,0.00016478,2]
[329851252,1718753438666,-122.47479893,0.00016967,2]
[329851253,1718753438677,-101.63983286,0.00016967,2]
[329851254,1718753438692,-398.36016714,0.00016967,2]
[329851255,1718753438704,-500.0,0.00016967,2]
[329851256,1718753438715,-500.0,0.00016967,2]
[329851257,1718753438726,-1438.88,0.00016967,2]
[329851258,1718753438737,-354.61758719,0.00016967,2]
[329851259,1718753438749,-403.12388241,0.00016967,2]
[329851260,1718753438759,-879.76823092,0.00017143,2]
[329851261,1718753438770,-500.0,0.0001724,2]
[329851262,1718753438781,-44.01993439,0.0001724,2]
[329851263,1718753438796,-521.52006561,0.0001724,2]